bitfinex-derivatives/quotes_SOLF0:USTF0_20250901
["timestamp","ask_amount","ask_price","bid_price","bid_amount"]
[1756734405562,337.3,199.52,199.33,7.68]
[1756734405755,135.34,199.51,199.37,7.68]
[1756734406953,0.03,199.5,199.37,7.68]
[1756734407154,7.33033565,199.5,199.37,7.68]
[1756734407354,0.03,199.49,199.29,7.68]
[1756734407755,7.33033565,199.5,199.29,7.68]
[1756734407957,0.03,199.48,199.29,7.68]
[1756734408156,7.33033565,199.46,199.29,7.68]
[1756734408359,0.03,199.48,199.33,7.68]
[1756734408662,344.63033565,199.52,199.37,7.68]
[1756734408663,79.6,199.5,199.37,7.68]
[1756734409053,0.03,199.51,199.37,7.68]
[1756734409274,135.06,199.49,199.37,7.68]
[1756734409457,135.48,199.49,199.37,7.68]
[1756734410170,135.48,199.48,199.37,7.68]
[1756734410358,0.03,199.51,199.37,7.68]
[1756734410557,135.44,199.47,199.37,7.68]
[1756734411359,337.3,199.52,199.38,7.68]
[1756734411563,135.46,199.51,199.38,7.68]
[1756734411963,135.46,199.51,199.39,4.50517637]
[1756734412163,337.33,199.52,199.4,7.68]
[1756734412362,135.38,199.51,199.43,7.68]
[1756734413266,337.3,199.52,199.46,7.68]
[1756734413560,0.03,199.57,199.47,12.19791537]
[1756734413762,337.14,199.64,199.48,9.02309174]
[1756734413763,84.08,199.58,199.48,9.02309174]
[1756734413956,84.08,199.58,199.49,4.51791537]
[1756734414160,135.16,199.6,199.5,7.68]
[1756734414365,135.16,199.6,199.51,4.51538754]
[1756734414565,135.16,199.6,199.52,4.51538754]
[1756734414864,135.16,199.6,199.5,7.68]
[1756734415166,135.16,199.6,199.51,4.51207816]
[1756734415364,135.16,199.6,199.5,7.68]
[1756734415567,135.16,199.6,199.51,4.50990677]
[1756734415755,0.03,199.63,199.5,7.68]
[1756734415960,0.03,199.61,199.51,4.50992742]
[1756734416156,0.03,199.61,199.49,4.50517637]
[1756734416362,0.03,199.61,199.5,4.50871547]
[1756734416561,0.03,199.61,199.49,12.18517637]
[1756734416758,0.03,199.61,199.5,4.508692]
[1756734417062,135.06,199.6,199.51,4.508692]
[1756734417262,135.06,199.6,199.52,4.508692]
[1756734417457,135.06,199.6,199.49,12.18517637]
[1756734417660,135.06,199.6,199.5,4.50553851]
[1756734417863,135.06,199.6,199.51,4.50553851]
[1756734418062,135.06,199.6,199.49,12.18517637]
[1756734418267,135.06,199.6,199.5,4.50553851]
[1756734418566,135.06,199.6,199.51,4.50553851]
[1756734418768,135.06,199.6,199.49,12.18517637]
[1756734418963,135.06,199.6,199.5,4.50306107]
[1756734419165,135.06,199.6,199.49,12.18517637]
[1756734419367,135.06,199.6,199.5,4.50316101]
[1756734419562,135.06,199.6,199.49,7.68]
[1756734419768,135.06,199.6,199.5,4.50126558]
[1756734419968,0.03,199.61,199.49,7.68]
[1756734420169,0.03,199.61,199.5,9.00644335]
[1756734420461,337.14,199.64,199.56,4.50517637]
[1756734420663,134.92,199.7,199.59,4.50517637]
[1756734421166,134.92,199.7,199.61,7.68]
[1756734421474,134.92,199.7,199.63,0.03555992]
[1756734421771,134.92,199.7,199.64,5.11077808]
[1756734421967,134.82,199.72,199.65,5.11077808]
[1756734422164,134.82,199.72,199.66,5.11077808]
[1756734422363,134.88,199.72,199.61,7.68]
[1756734422561,0.06,199.72,199.62,4.50517637]
[1756734422766,0.06,199.77,199.67,0.03228704]
[1756734423060,0.06,199.75,199.67,0.03228704]
[1756734424069,134.68,199.74,199.67,0.03228704]
[1756734424770,0.06,199.73,199.67,0.03228704]
[1756734425472,0.5,199.73,199.56,7.68]
[1756734425664,0.03,199.68,199.52,4.50517637]
[1756734425868,4.50517637,199.69,199.52,4.50517637]
[1756734425869,0.03,199.66,199.52,4.50517637]
[1756734426367,100.78,199.68,199.59,7.68]
[1756734427571,337.0,199.79,199.65,7.68]
[1756734427867,337.0,199.79,199.7,4.50517637]
[1756734428063,337.0,199.79,199.68,7.88]
[1756734429771,337.0,199.79,199.56,4.50517637]
[1756734430076,341.50517637,199.79,199.64,12.38517637]
[1756734430471,341.50517637,199.79,199.61,4.50517637]
[1756734431567,4.50517637,199.76,199.61,4.50517637]
[1756734432074,337.0,199.79,199.61,4.50517637]
[1756734432279,4.50517637,199.77,199.61,4.50517637]
[1756734432572,134.64,199.76,199.61,4.50517637]
[1756734432969,134.58,199.75,199.65,7.88]
[1756734433173,337.0,199.79,199.67,4.50517637]
[1756734433370,134.52,199.78,199.67,4.50517637]
[1756734433569,134.52,199.78,199.65,7.88]
[1756734433570,134.52,199.78,199.66,4.50517637]
[1756734433868,4.50517637,199.77,199.6,4.50517637]
[1756734434173,4.50517637,199.77,199.61,7.88]
[1756734434373,4.50517637,199.74,199.57,7.88]
[1756734434771,83.38,199.73,199.59,4.50517637]
[1756734434970,352.04,199.79,199.59,4.50517637]
[1756734435169,4.50517637,199.76,199.59,4.50517637]
[1756734435571,337.0,199.79,199.6,7.88]
[1756734435777,112.3,199.75,199.6,7.88]
[1756734436779,134.48,199.74,199.6,7.88]
[1756734436970,4.50517637,199.77,199.6,7.88]
[1756734437165,81.32,199.76,199.62,4.50517637]
[1756734437471,341.50517637,199.79,199.63,7.88]
[1756734437668,0.03216245,199.71,199.63,7.88]
[1756734438471,0.03216245,199.71,199.62,4.50517637]
[1756734438472,0.03216245,199.71,199.58,17.94]
[1756734438673,0.03216245,199.71,199.67,4.50517637]
[1756734438873,106.02,199.77,199.67,12.38517637]
[1756734439176,0.03188649,199.71,199.67,12.38517637]
[1756734439375,0.03188649,199.71,199.68,7.88]
[1756734439576,134.18,199.78,199.68,7.88]
[1756734439769,337.0,199.79,199.68,7.88]
[1756734439770,337.0,199.79,199.7,4.50517637]
[1756734439968,337.0,199.79,199.69,4.50517637]
[1756734441177,0.03176625,199.76,199.69,4.50517637]
[1756734442082,0.03176625,199.76,199.66,4.50517637]
[1756734442474,337.0,199.79,199.63,7.88]
[1756734442784,337.0,199.79,199.65,4.50517637]
[1756734443180,0.03173972,199.73,199.65,4.50517637]
[1756734443783,102.58,199.72,199.57,4.50517637]
[1756734444180,352.04,199.79,199.57,4.50517637]
[1756734444384,4.50517637,199.77,199.61,7.88]
[1756734444587,337.0,199.79,199.61,7.88]
[1756734444588,80.24,199.76,199.61,7.88]
[1756734444787,337.0,199.79,199.63,4.50517637]
[1756734445080,133.9,199.78,199.64,7.88]
[1756734445481,337.0,199.79,199.66,4.50517637]
[1756734445685,133.9,199.78,199.69,4.50517637]
[1756734447587,0.03183823,199.75,199.69,4.50517637]
[1756734448484,0.03183823,199.75,199.63,13.78]
[1756734448688,0.03183823,199.75,199.72,4.50517637]
[1756734448883,0.98,199.82,199.73,7.88]
[1756734449089,73.02,199.84,199.73,7.88]
[1756734449290,133.56,199.84,199.73,7.88]
[1756734449493,4.50517637,199.9,199.75,4.50517637]
[1756734449688,133.56,199.89,199.75,4.50517637]
[1756734449891,4.50517637,199.87,199.73,7.88]
[1756734450186,0.03190454,199.84,199.73,7.88]
[1756734450387,103.32,199.83,199.68,12.38517637]
[1756734450989,4.50517637,199.81,199.68,7.88]
[1756734451190,0.03230851,199.77,199.63,12.38517637]
[1756734451494,97.35230851,199.77,199.63,12.38517637]
[1756734451695,97.32,199.77,199.63,12.38517637]
[1756734452198,93.4,199.79,199.67,7.88]
[1756734452397,93.4,199.8,199.67,7.88]
[1756734452695,93.4,199.8,199.68,4.69961614]
[1756734452898,0.03202764,199.75,199.69,4.69961614]
[1756734453097,0.03202764,199.75,199.7,4.69961614]
[1756734453293,0.03202764,199.75,199.71,4.69961614]
[1756734453493,0.03202764,199.75,199.67,7.88]
[1756734453695,0.03202764,199.75,199.7,7.88]
[1756734454095,4.50517637,199.87,199.7,7.88]
[1756734454397,75.08,199.86,199.72,4.50517637]
[1756734454595,75.08,199.86,199.73,7.88]
[1756734455090,4.50517637,199.9,199.73,7.88]
[1756734455292,75.08,199.89,199.75,4.50517637]
[1756734455598,133.2,199.89,199.76,7.88]
[1756734455795,133.2,199.89,199.78,4.50517637]
[1756734456296,336.6,199.91,199.81,4.50517637]
[1756734456895,0.8707946,199.97,199.84,12.38517637]
[1756734457095,133.08,199.96,199.84,12.38517637]
[1756734457503,133.08,199.96,199.85,4.59292993]
[1756734457699,336.52,200.03,199.86,4.59292993]
[1756734457899,133.06,200.02,199.88,4.50517637]
[1756734458092,0.8706421,200.01,199.89,4.59292993]
[1756734458293,0.8706421,200.01,199.9,4.59292993]
[1756734458499,0.8706421,200.01,199.91,4.59292993]
[1756734458701,0.8706421,200.01,199.92,4.59292993]
[1756734458902,0.8706421,200.01,199.93,4.59292993]
[1756734459097,0.03446641,199.98,199.94,4.59292993]
[1756734459402,0.03446641,199.98,199.95,4.59292993]
[1756734459598,0.03446641,199.98,199.96,4.59141676]
[1756734459800,7.28540787,200.0,199.82,8.13]
[1756734460000,7.28540787,200.0,199.83,4.5914568]
[1756734460199,7.28540787,200.0,199.82,8.13]
[1756734460200,7.28540787,200.0,199.84,4.5914568]
[1756734460400,7.28540787,200.0,199.85,4.5914568]
[1756734460608,7.28540787,200.0,199.86,4.5914568]
[1756734460810,0.8706421,200.01,199.87,4.5914568]
[1756734460811,7.28540787,199.96,199.87,4.5914568]
[1756734460997,104.84,199.95,199.88,4.5914568]
[1756734461197,104.84,199.95,199.89,4.5914568]
[1756734461402,104.84,199.95,199.9,4.5914568]
[1756734461706,104.84,199.95,199.91,4.5914568]
[1756734461906,104.84,199.95,199.92,4.5914568]
[1756734462109,104.84,199.95,199.93,4.5914568]
[1756734462405,104.84,199.95,199.82,8.13]
[1756734462702,104.84,199.95,199.83,4.59501578]
[1756734462909,104.84,199.95,199.84,4.59501578]
[1756734463109,104.84,199.95,199.85,4.59501578]
[1756734463298,104.84,199.95,199.86,4.59501578]
[1756734463503,132.8,199.96,199.87,4.59501578]
[1756734463700,132.8,199.96,199.86,8.13]
[1756734463701,132.8,199.96,199.88,4.59501578]
[1756734463903,132.8,199.96,199.89,4.59501578]
[1756734464102,132.8,199.96,199.9,4.59501578]
[1756734464299,132.8,199.96,199.91,4.59501578]
[1756734464504,132.8,199.96,199.81,8.13]
[1756734465909,7.28540787,199.94,199.77,4.1286996]
[1756734466202,7.28540787,199.94,199.76,8.13]
[1756734466606,132.8,199.96,199.76,8.13]
[1756734466811,7.28540787,199.94,199.76,8.13]
[1756734467505,7.28540787,199.9,199.76,8.13]
[1756734467710,80.7,199.89,199.76,8.13]
[1756734467909,83.58,199.88,199.76,8.13]
[1756734470116,83.58,199.88,199.68,134.21776798]
[1756734470311,7.28540787,199.86,199.69,8.13]
[1756734472715,84.14,199.85,199.69,8.13]
[1756734473012,336.38,199.89,199.69,8.13]
[1756734473013,132.06,199.84,199.69,8.13]
[1756734473805,132.06,199.84,199.7,4.42703833]
[1756734474014,132.06,199.84,199.71,4.42703833]
[1756734474209,132.06,199.84,199.72,4.42703833]
[1756734474517,131.96,199.83,199.73,12.55703833]
[1756734474713,131.96,199.83,199.74,4.42703833]
[1756734474910,131.96,199.83,199.75,4.42703833]
[1756734475113,131.96,199.83,199.76,4.42703833]
[1756734475416,131.96,199.83,199.73,8.13]
[1756734475417,131.96,199.83,199.77,4.42703833]
[1756734475618,131.96,199.83,199.78,4.42703833]
[1756734475818,131.96,199.83,199.79,4.42703833]
[1756734476112,131.96,199.83,199.8,4.4278451]
[1756734476315,131.96,199.83,199.81,4.4278451]
[1756734476515,131.96,199.83,199.73,8.13]
[1756734476817,131.96,199.83,199.74,4.42859343]
[1756734477014,131.96,199.83,199.75,4.42859343]
[1756734477316,131.96,199.83,199.76,4.42859343]
[1756734477516,131.96,199.83,199.77,4.42859343]
[1756734477813,131.96,199.83,199.78,4.42859343]
[1756734478113,0.03408853,199.82,199.79,4.42859343]
[1756734478317,0.03408853,199.82,199.8,4.42859343]
[1756734478515,131.62,199.84,199.81,4.42859343]
[1756734478716,131.62,199.84,199.82,4.42859343]
[1756734478914,131.62,199.84,199.83,4.42859343]
[1756734480012,131.62,199.84,199.73,8.13]
[1756734480315,131.62,199.84,199.74,4.43143665]
[1756734480511,4.49124658,199.88,199.76,8.13]
[1756734480711,131.46,199.88,199.77,4.43143665]
[1756734481012,131.46,199.88,199.78,4.43143665]
[1756734481220,131.46,199.88,199.79,4.43143665]
[1756734481419,336.38,199.89,199.8,4.43143665]
[1756734481715,336.38,199.89,199.81,4.43143665]
[1756734482018,336.38,199.89,199.83,8.13]
[1756734482211,336.38,199.89,199.84,4.43358828]
[1756734482416,336.38,199.89,199.86,8.13]
[1756734482715,336.38,199.89,199.87,4.43358828]
[1756734482922,336.38,199.89,199.88,4.43358828]
[1756734484110,336.38,199.89,199.81,8.13]
[1756734485017,336.38,199.89,199.76,12.62124658]
[1756734485617,336.38,199.89,199.77,8.13]
[1756734485812,336.38,199.89,199.79,4.49124658]
[1756734486013,131.1,199.88,199.8,8.13]
[1756734486612,336.38,199.89,199.8,8.13]
[1756734487010,336.38,199.89,199.75,4.18033296]
[1756734487011,4.49124658,199.97,199.83,8.13]
[1756734487319,131.0,199.96,199.83,8.13]
[1756734487719,337.2706421,200.01,199.88,4.49124658]
[1756734487915,130.96,200.0,199.89,4.55943028]
[1756734488121,130.96,200.0,199.9,4.55943028]
[1756734488320,130.96,200.0,199.91,4.55943028]
[1756734488524,130.96,200.0,199.92,4.55943028]
[1756734488714,130.96,200.0,199.93,4.55943028]
[1756734489020,130.96,200.0,199.94,4.55943028]
[1756734489214,130.96,200.0,199.95,4.55943028]
[1756734489416,130.94,199.99,199.96,4.55943028]
[1756734489616,130.94,199.99,199.97,4.55943028]
[1756734489812,336.4,200.01,199.98,4.55943028]
[1756734490014,467.26,200.01,199.99,4.55943028]
[1756734490212,4.49124658,200.08,200.0,4.55943028]
[1756734490525,67.22,200.07,200.01,4.55943028]
[1756734490822,0.03390014,200.06,200.02,4.55943028]
[1756734491024,0.03390014,200.06,200.03,4.55943028]
[1756734491322,0.03390014,200.06,200.04,4.55943028]
[1756734491512,0.03390014,200.06,199.97,7.95]
[1756734491717,123.69390014,200.06,199.98,4.55133569]
[1756734491921,123.69390014,200.06,199.99,4.55133569]
[1756734492113,123.69390014,200.06,200.0,4.55133569]
[1756734492314,0.03390014,200.06,200.01,4.55133569]
[1756734492517,0.03390014,200.06,200.03,7.95]
[1756734492717,0.03390014,200.06,200.04,4.55133569]
[1756734493022,130.66,200.09,200.05,12.50133569]
[1756734493228,130.66,200.11,200.06,12.50133569]
[1756734493426,336.34,200.13,200.07,4.55133569]
[1756734493717,467.02,200.13,200.08,12.50133569]
[1756734493921,0.03688836,200.12,200.09,4.55133569]
[1756734494115,0.03688836,200.12,200.1,4.55133569]
[1756734494317,0.03688836,200.12,200.11,4.55133569]
[1756734494922,0.03688836,200.12,200.11,12.50133569]
[1756734495824,0.03688836,200.12,200.11,12.47270821]
[1756734496716,0.03688836,200.12,200.11,4.52270821]
[1756734497314,0.03688836,200.12,200.02,7.95]
[1756734497524,0.03688836,200.12,200.03,4.51634559]
[1756734497716,0.03688836,200.12,200.04,4.51634559]
[1756734497914,0.03688836,200.12,200.05,4.51634559]
[1756734498118,87.07688836,200.12,200.06,4.51634559]
[1756734498314,87.07688836,200.12,200.07,4.51634559]
[1756734498520,87.07688836,200.12,200.08,4.51634559]
[1756734498723,87.07688836,200.12,200.02,7.95]
[1756734498922,87.07688836,200.12,200.03,4.5182509]
[1756734499125,87.07688836,200.12,200.04,4.5182509]
[1756734499317,87.07688836,200.12,200.05,4.5182509]
[1756734499516,4.49124658,200.1,199.98,7.95]
[1756734499726,4.49124658,200.1,199.99,4.51829121]
[1756734499925,4.49124658,200.1,199.98,7.95]
[1756734499926,4.49124658,200.1,200.0,4.51829121]
[1756734500227,4.49124658,200.1,200.01,4.51829121]
[1756734500427,4.49124658,200.1,200.02,4.51829121]
[1756734500626,4.49124658,200.1,200.03,4.51829121]
[1756734500827,4.49124658,200.1,199.98,7.95]
[1756734501022,4.49124658,200.1,199.99,4.52072558]
[1756734501221,4.49124658,200.1,200.0,4.52072558]
[1756734501416,4.49124658,200.1,200.01,4.52072558]
[1756734501619,4.49124658,200.1,200.02,4.52072558]
[1756734501821,4.49124658,200.1,199.98,7.95]
[1756734502027,4.49124658,200.1,199.99,4.52054506]
[1756734502228,87.04,200.12,199.93,12.44124658]
[1756734502229,4.49124658,200.07,199.93,7.95]
[1756734502423,4.49124658,200.04,199.94,4.54159224]
[1756734502619,4.49124658,200.01,199.95,4.54159224]
[1756734502932,57.72,200.0,199.9,7.95]
[1756734503225,4.49124658,200.01,199.91,4.52659586]
[1756734503427,4.49124658,200.03,199.92,4.52659586]
[1756734503724,57.32,200.02,199.93,4.52659586]
[1756734503926,57.32,200.02,199.94,4.52659586]
[1756734504231,57.32,200.02,199.95,4.52659586]
[1756734504423,57.32,200.02,199.9,7.95]
[1756734504727,57.32,200.02,199.91,4.52641329]
[1756734505028,57.32,200.02,199.92,4.52641329]
[1756734505224,4.49124658,200.03,199.93,4.52641329]
[1756734505424,4.49124658,200.03,199.94,4.52641329]
[1756734505621,56.56,200.02,199.95,4.52641329]
[1756734505828,56.56,200.02,199.9,7.95]
[1756734506029,56.56,200.02,199.91,4.52623068]
[1756734506327,56.56,200.02,199.92,4.52626851]
[1756734506528,56.56,200.02,199.93,4.52626851]
[1756734506724,56.56,200.02,199.9,7.95]
[1756734506932,56.56,200.02,199.91,4.52619502]
[1756734507128,56.56,200.02,199.92,4.52619502]
[1756734507325,56.56,200.02,199.93,4.52619502]
[1756734507525,56.56,200.02,199.94,4.52619502]
[1756734507726,4.49124658,200.03,199.95,4.52619502]
[1756734507934,55.56,200.02,199.96,4.52596797]
[1756734508225,55.56,200.02,199.9,7.95]
[1756734508425,55.56,200.02,199.91,4.52664063]
[1756734508629,55.56,200.02,199.92,4.52664063]
[1756734508826,4.49124658,200.03,199.93,4.52664063]
[1756734509030,55.18,200.02,199.94,4.52664063]
[1756734509230,55.18,200.02,199.95,4.52664063]
[1756734509531,4.49124658,200.03,199.96,4.52664063]
[1756734509729,4.49124658,200.06,199.9,7.95]
[1756734509924,4.49124658,200.08,199.97,7.95]
[1756734510124,129.56,200.07,199.98,4.52548053]
[1756734510326,129.56,200.07,199.97,7.95]
[1756734510529,129.56,200.07,199.98,4.52563363]
[1756734510732,4.49124658,200.08,199.97,7.95]
[1756734510929,336.08,200.1,199.98,4.52486506]
[1756734511133,129.54,200.09,199.99,4.52486506]
[1756734511328,129.54,200.09,200.0,4.52486506]
[1756734511532,129.54,200.09,200.01,4.52421697]
[1756734511834,129.54,200.09,199.97,7.95]
[1756734512039,129.54,200.09,199.98,4.52421697]
[1756734512231,336.08,200.1,199.99,4.52421697]
[1756734512534,129.42,200.09,200.0,12.47421697]
[1756734512736,129.42,200.09,200.01,4.52421697]
[1756734512934,129.42,200.09,200.0,7.95]
[1756734512935,336.08,200.1,200.02,4.52421697]
[1756734513237,465.48,200.1,200.03,4.52421697]
[1756734513437,465.48,200.1,200.04,4.52421697]
[1756734513636,465.48,200.1,200.05,4.52421697]
[1756734513833,465.48,200.1,200.0,7.95]
[1756734514034,465.48,200.1,200.01,4.51923857]
[1756734514235,465.48,200.1,200.02,4.51923857]
[1756734514437,465.48,200.1,200.03,4.51923857]
[1756734514637,336.08,200.1,200.04,4.51923857]
[1756734514831,465.38,200.1,200.05,4.51923857]
[1756734515033,336.08,200.1,200.0,7.95]
[1756734515333,465.32,200.1,200.02,7.95]
[1756734515538,336.08,200.1,200.03,4.51899873]
[1756734515739,336.08,200.1,200.04,4.51899873]
[1756734516034,336.08,200.1,200.05,12.46899873]
[1756734516237,336.08,200.1,200.06,4.51860253]
[1756734516431,336.08,200.1,200.07,4.51860253]
[1756734516637,336.08,200.1,200.01,4.49124658]
[1756734516934,129.16,200.12,200.02,12.47026734]
[1756734517140,129.16,200.12,200.03,4.52026734]
[1756734517341,129.1,200.12,200.04,4.52026734]
[1756734517634,129.1,200.12,200.05,4.52026734]
[1756734517937,129.1,200.12,200.06,4.52026734]
[1756734518236,129.1,200.12,200.02,7.95]
[1756734518435,129.1,200.12,200.03,4.52275686]
[1756734518641,129.1,200.12,200.04,4.52275686]
[1756734518941,129.1,200.12,199.97,7.63]
[1756734519140,129.1,200.12,199.98,4.52599837]
[1756734519335,129.1,200.12,199.99,4.52599837]
[1756734519541,129.1,200.12,200.0,4.52599837]
[1756734519742,129.1,200.12,200.01,4.52599837]
[1756734519938,129.1,200.12,200.02,4.52599837]
[1756734520136,129.1,200.12,199.97,7.63]
[1756734520137,129.1,200.12,200.03,4.52599837]
[1756734520336,129.1,200.12,200.04,4.52599837]
[1756734520642,4.49124658,200.1,199.97,7.63]
[1756734520837,4.49124658,200.1,199.98,4.53164991]
[1756734521038,4.49124658,200.1,199.99,4.53164991]
[1756734521233,4.49124658,200.1,200.0,4.53164991]
[1756734521441,4.49124658,200.1,199.97,7.63]
[1756734521442,4.49124658,200.1,200.01,4.53164991]
[1756734521742,4.49124658,200.1,200.02,4.53164991]
[1756734521943,4.49124658,200.1,199.97,7.63]
[1756734522145,4.49124658,200.07,199.98,4.53689097]
[1756734522339,75.54,200.06,199.99,4.53689097]
[1756734522541,75.54,200.06,199.92,7.63]
[1756734522542,4.49124658,200.07,200.0,4.53689097]
[1756734522743,76.62,200.06,200.01,4.53689097]
[1756734522949,76.62,200.06,200.02,4.53689097]
[1756734523239,94.2,200.05,200.03,4.53689097]
[1756734523445,94.2,200.05,200.04,4.53689097]
[1756734523739,94.2,200.05,200.04,4.54438465]
[1756734523945,94.2,200.05,199.96,7.63]
[1756734524144,94.2,200.05,199.97,4.54465518]
[1756734524340,94.2,200.05,199.98,4.54465518]
[1756734524540,94.2,200.05,199.99,4.54465518]
[1756734524736,94.2,200.05,200.0,4.54465518]
[1756734525042,94.2,200.05,200.01,4.54465518]
[1756734525241,94.2,200.05,200.02,4.54465518]
[1756734525444,94.2,200.05,200.03,4.54465518]
[1756734525640,4.49124658,200.07,199.92,7.63]
[1756734525837,6.64,200.07,199.95,7.63]
[1756734526041,6.64,200.07,199.96,4.54975152]
[1756734526240,6.64,200.07,199.98,7.63]
[1756734526442,0.0328781,200.04,199.99,4.54975152]
[1756734526642,0.0328781,200.04,200.01,7.63]
[1756734526842,0.0328781,200.04,200.02,12.17975152]
[1756734527038,0.0328781,200.04,200.03,12.17975152]
[1756734527438,0.0328781,200.04,200.03,12.18253961]
[1756734527940,0.7,200.13,200.03,12.68253961]
[1756734528146,0.03,200.16,200.04,4.55253961]
[1756734528347,0.03,200.14,200.05,4.55253961]
[1756734528648,0.03,200.14,200.03,7.63]
[1756734528649,0.03,200.14,200.06,4.55253961]
[1756734528951,0.03,200.14,200.07,4.55253961]
[1756734529147,0.03,200.14,200.08,4.55253961]
[1756734529346,128.61,200.15,200.09,4.55253961]
[1756734529546,128.58,200.15,200.1,4.55253961]
[1756734529747,128.58,200.15,200.11,4.55253961]
[1756734530047,128.58,200.15,200.07,0.03690803]
[1756734530048,0.03,200.14,200.12,4.55253961]
[1756734530349,0.03,200.14,200.13,4.55253961]
[1756734530543,128.49,200.14,199.99,7.63]
[1756734530748,4.49124658,200.13,200.11,0.03752148]
[1756734531136,4.49124658,200.13,199.99,7.63]
[1756734531343,128.44,200.12,200.1,0.03501634]
[1756734531947,4.49124658,200.13,199.99,7.63]
[1756734532145,128.42,200.12,200.09,0.0331006]
[1756734532346,128.42,200.12,199.99,7.63]
[1756734532742,4.49124658,200.13,200.08,0.03677231]
[1756734532943,128.36,200.12,200.02,7.63]
[1756734533244,128.36,200.12,200.08,0.03589553]
[1756734533439,4.49124658,200.13,200.08,0.03589553]
[1756734533440,128.32,200.11,200.08,0.03589553]
[1756734533837,4.49124658,200.16,200.08,0.03589553]
[1756734534245,55.34,200.15,200.08,0.03589553]
[1756734535445,4.49124658,200.19,200.08,0.03589553]
[1756734535747,105.04,200.18,200.08,0.03589553]
[1756734535948,128.24,200.17,200.08,0.03589553]
[1756734537144,128.24,200.17,200.08,7.66589553]
[1756734537547,5.36088785,200.2,200.08,7.66589553]
[1756734537748,0.86964127,200.2,200.08,7.66589553]
[1756734537957,128.2,200.19,200.08,7.66589553]
[1756734538450,128.2,200.19,200.08,7.63]
[1756734538747,128.18,200.19,200.12,7.63]
[1756734538949,128.26,200.2,200.12,7.63]
[1756734540646,336.08,200.22,200.12,7.63]
[1756734540845,4.49124658,200.28,200.12,7.63]
[1756734541047,128.26,200.27,200.15,7.63]
[1756734541551,128.26,200.27,200.19,0.03829372]
[1756734541940,0.86944573,200.3,200.19,0.03829372]
[1756734541941,128.22,200.28,200.19,0.03829372]
[1756734542652,128.22,200.28,200.2,4.56054112]
[1756734542850,0.86944573,200.3,200.21,4.56054112]
[1756734543049,128.18,200.29,200.22,4.56054112]
[1756734543253,128.18,200.29,200.23,4.56054112]
[1756734543452,128.18,200.29,200.24,4.56054112]
[1756734543653,128.18,200.29,200.25,4.56054112]
[1756734543851,128.18,200.29,200.23,0.03579901]
[1756734544058,128.14,200.29,200.24,4.55624835]
[1756734544257,128.14,200.29,200.25,4.55624835]
[1756734544556,128.14,200.29,200.26,4.55624835]
[1756734544757,128.14,200.29,200.27,4.55624835]
[1756734544955,128.14,200.29,200.28,4.55624835]
[1756734547557,128.14,200.29,200.28,4.55347162]
[1756734547760,128.14,200.29,200.23,0.03579901]
[1756734547958,128.14,200.29,200.24,4.55347162]
[1756734548157,128.14,200.29,200.25,4.55416266]
[1756734548454,128.14,200.29,200.26,4.55416266]
[1756734548653,128.14,200.29,200.27,4.55416266]
[1756734548860,128.14,200.29,200.28,4.55416266]
[1756734551061,335.98,200.34,200.28,4.55416266]
[1756734551261,335.98,200.34,200.29,4.55416266]
[1756734551461,335.98,200.34,200.21,4.49124658]
[1756734551462,128.1,200.33,200.3,4.55416266]
[1756734551651,128.1,200.33,200.25,7.92]
[1756734551854,128.1,200.33,200.29,0.037802]